bitfinex-derivatives/quotes_BTCF0:USTF0_20250322
["timestamp","ask_amount","ask_price","bid_price","bid_amount"]
[1742652100116,0.96418242,84184.0,84183.0,0.0332]
[1742652100818,0.60338242,84184.0,84183.0,0.0332]
[1742652101017,0.60338242,84184.0,84183.0,0.065]
[1742652101213,0.44780924,84184.0,84183.0,0.065]
[1742652101515,0.1195006,84184.0,84183.0,0.184502]
[1742652101708,0.1195006,84184.0,84183.0,0.184462]
[1742652102111,0.1195006,84184.0,84183.0,0.214862]
[1742652102616,0.1195006,84184.0,84183.0,0.22647814]
[1742652103520,0.33261864,84184.0,84183.0,0.09604]
[1742652104219,0.36391864,84184.0,84183.0,0.09604]
[1742652105823,0.33261864,84184.0,84183.0,0.09604]
[1742652106023,0.33261864,84184.0,84183.0,0.214862]
[1742652107317,0.1195006,84184.0,84183.0,0.09604]
[1742652107516,0.30208872,84184.0,84183.0,0.09604]
[1742652107718,0.30208872,84184.0,84183.0,0.0954]
[1742652108316,0.30208872,84184.0,84183.0,0.09604]
[1742652108524,0.30208872,84184.0,84183.0,0.0954]
[1742652109225,0.30208872,84184.0,84183.0,0.096]
[1742652109722,0.30208872,84184.0,84183.0,0.0954]
[1742652110525,0.30208872,84184.0,84183.0,0.096]
[1742652111823,0.30208872,84184.0,84183.0,0.0954]
[1742652119730,0.30208872,84184.0,84183.0,0.096]
[1742652120132,0.30208872,84184.0,84183.0,0.0954]
[1742652121628,0.30208872,84184.0,84183.0,0.09604]
[1742652121831,0.2960606,84184.0,84183.0,0.09604]
[1742652122929,0.2960606,84184.0,84183.0,0.214862]
[1742652123237,0.1519006,84184.0,84183.0,0.214862]
[1742652123738,0.1519006,84184.0,84183.0,0.10778735]
[1742652123940,0.1837006,84184.0,84183.0,0.10778735]
[1742652124236,0.1837006,84184.0,84183.0,0.22660935]
[1742652124438,0.1837006,84184.0,84183.0,0.10778735]
[1742652124732,0.36147467,84184.0,84183.0,0.10778735]
[1742652125436,0.36147467,84184.0,84183.0,0.09604]
[1742652127734,0.1837006,84184.0,84183.0,0.09604]
[1742652130537,0.1837006,84184.0,84183.0,0.0954]
[1742652131335,0.36147467,84184.0,84183.0,0.214862]
[1742652131536,0.36147467,84184.0,84183.0,0.214222]
[1742652131840,0.36147467,84184.0,84183.0,0.214862]
[1742652132932,0.36147467,84184.0,84183.0,0.09604]
[1742652139050,0.1837006,84184.0,84183.0,0.09604]
[1742652144851,0.1837006,84184.0,84183.0,0.03104]
[1742652145046,0.1837006,84184.0,84183.0,0.00064]
[1742652145444,0.1188235,84182.0,84181.0,0.00017811]
[1742652145645,0.1188235,84182.0,84181.0,0.00077811]
[1742652145646,0.11942351,84182.0,84181.0,0.00077811]
[1742652145947,0.21592351,84182.0,84181.0,0.00077811]
[1742652146952,0.21592351,84182.0,84181.0,0.00177811]
[1742652147746,0.2276449,84182.0,84181.0,0.00117811]
[1742652148254,0.2276449,84182.0,84181.0,0.00185811]
[1742652148642,0.2276449,84182.0,84181.0,0.00117811]
[1742652149157,0.2276449,84182.0,84181.0,0.00177811]
[1742652149756,0.34643584,84182.0,84181.0,0.00177811]
[1742652149957,0.34643584,84182.0,84181.0,0.00117811]
[1742652151754,0.1188376,84172.0,84171.0,0.57447679]
[1742652151958,0.1188376,84172.0,84171.0,0.57507679]
[1742652152147,0.1194776,84172.0,84171.0,0.57507679]
[1742652152349,0.2125776,84172.0,84171.0,0.57507679]
[1742652152954,0.2125776,84172.0,84171.0,0.57807679]
[1742652153258,0.2125776,84172.0,84171.0,0.3674]
[1742652154951,0.2125776,84172.0,84171.0,0.36853292]
[1742652155551,0.2125776,84172.0,84171.0,0.36902365]
[1742652155952,0.22440219,84172.0,84171.0,0.36902365]
[1742652158656,0.22440219,84172.0,84171.0,0.39982365]
[1742652165072,0.22440219,84172.0,84171.0,0.36902365]
[1742652165273,0.22440219,84172.0,84171.0,0.00822365]
[1742652165470,0.34320724,84172.0,84171.0,0.00762365]
[1742652168588,0.34320724,84172.0,84171.0,0.04082365]
[1742652169191,0.34320724,84172.0,84171.0,0.00762365]
[1742652169491,0.34320724,84172.0,84171.0,0.04022365]
[1742652169792,0.34320724,84172.0,84171.0,0.07162365]
[1742652172295,0.52094911,84172.0,84171.0,0.07162365]
[1742652174284,0.48894911,84172.0,84171.0,0.07162365]
[1742652176090,0.31120724,84172.0,84171.0,0.07162365]
[1742652176488,0.31120724,84172.0,84171.0,0.04022365]
[1742652179097,0.31120724,84172.0,84171.0,0.07132365]
[1742652180897,0.31120724,84172.0,84171.0,0.04022365]
[1742652181099,0.0594209,84170.0,84167.0,0.0311]
[1742652181393,0.1188432,84168.0,84167.0,0.0636]
[1742652181598,0.1195232,84168.0,84167.0,0.0636]
[1742652181798,0.23833249,84168.0,84167.0,0.0636]
[1742652182097,0.30233249,84168.0,84167.0,0.0636]
[1742652182402,0.1188446,84167.0,84166.0,8e-05]
[1742652182697,0.1188475,84165.0,84164.0,0.0633]
[1742652182891,0.11944751,84165.0,84164.0,0.06338]
[1742652183297,0.18344751,84165.0,84164.0,0.06338]
[1742652183795,0.30226244,84165.0,84164.0,0.06338]
[1742652183997,0.30226244,84165.0,84164.0,0.10028]
[1742652184197,0.30226244,84165.0,84164.0,0.10528]
[1742652186897,0.47998834,84165.0,84164.0,0.10528]
[1742652188899,0.59278834,84165.0,84164.0,0.10528]
[1742652190902,0.41506244,84165.0,84164.0,0.10528]
[1742652192507,0.30226244,84165.0,84164.0,0.10528]
[1742652192706,0.41506244,84165.0,84164.0,0.10528]
[1742652192906,0.29624751,84165.0,84164.0,0.10528]
[1742652198398,0.65704751,84165.0,84164.0,0.10588]
[1742652198597,0.65704751,84165.0,84164.0,0.10528]
[1742652199200,0.29624751,84165.0,84164.0,0.10528]
[1742652199400,0.65704751,84165.0,84164.0,0.10588]
[1742652199612,0.65704751,84165.0,84164.0,0.10528]
[1742652200602,0.29624751,84165.0,84164.0,0.10528]
[1742652200907,0.65704751,84165.0,84164.0,0.10596]
[1742652201111,0.65704751,84165.0,84164.0,0.10528]
[1742652202514,0.29624751,84165.0,84164.0,0.10528]
[1742652202706,0.29624751,84165.0,84164.0,0.10592]
[1742652203109,0.29624751,84165.0,84164.0,0.10528]
[1742652207409,0.29624751,84165.0,84164.0,0.10592]
[1742652207604,0.29624751,84165.0,84164.0,0.10528]
[1742652208016,0.29624751,84165.0,84164.0,0.10588]
[1742652208215,0.29624751,84165.0,84164.0,0.10528]
[1742652208418,0.29624751,84165.0,84164.0,0.10588]
[1742652208612,0.29624751,84165.0,84164.0,0.10528]
[1742652209916,0.11944751,84165.0,84164.0,0.2248089]
[1742652212604,0.00060001,84165.0,84164.0,0.2248089]
[1742652212810,0.33213484,84167.0,84166.0,0.118846]
[1742652213118,0.33277484,84167.0,84166.0,0.119486]
[1742652213510,0.33277484,84167.0,84166.0,0.1316091]
[1742652214213,0.33277484,84167.0,84166.0,0.1346091]
[1742652214918,0.1194846,84167.0,84166.0,0.1346091]
[1742652215106,0.1194846,84167.0,84166.0,0.1396091]
[1742652220811,0.00064,84167.0,84166.0,0.1396091]
[1742652221017,0.1188446,84167.0,84166.0,0.1396091]
[1742652221525,0.1195246,84167.0,84166.0,0.1396091]
[1742652224928,0.1527246,84167.0,84166.0,0.1396091]
[1742652228627,0.1527246,84167.0,84166.0,0.2012091]
[1742652228827,0.03388,84167.0,84166.0,0.2012091]
[1742652230722,0.06658,84167.0,84166.0,0.2012091]
[1742652231222,0.0332,84167.0,84166.0,0.2012091]
[1742652232228,0.15264461,84167.0,84166.0,0.2012091]
[1742652233136,0.03380001,84167.0,84166.0,0.2012091]
[1742652233537,0.06450001,84167.0,84166.0,0.2012091]
[1742652233836,0.18334461,84167.0,84166.0,0.2012091]
[1742652241233,0.18334461,84167.0,84166.0,0.1396091]
[1742652242635,0.18334461,84167.0,84166.0,0.1703091]
[1742652244644,0.18334461,84167.0,84166.0,0.38398589]
[1742652247643,0.18334461,84167.0,84166.0,0.1703091]
[1742652248543,0.18334461,84167.0,84166.0,0.0514631]
[1742652248744,0.18334461,84167.0,84166.0,0.1214]
[1742652250343,0.18334461,84167.0,84166.0,0.00864]
[1742652253641,0.18334461,84167.0,84166.0,0.127486]
[1742652253950,0.18334461,84167.0,84166.0,0.188686]
[1742652254146,0.18334461,84167.0,84166.0,0.157886]
[1742652255351,0.18334461,84167.0,84166.0,0.127486]
[1742652255747,0.18334461,84167.0,84166.0,0.488286]
[1742652256745,0.18334461,84167.0,84166.0,0.127486]
[1742652256951,0.18334461,84167.0,84166.0,0.488286]
[1742652258344,0.18334461,84167.0,84166.0,0.36944]
[1742652258544,0.18334461,84167.0,84166.0,0.40254]
[1742652258745,0.18334461,84167.0,84166.0,0.521386]
[1742652258945,0.18334461,84167.0,84166.0,0.551886]
[1742652259150,0.17784657,84171.0,84170.0,0.1188404]
[1742652259352,0.17860657,84171.0,84170.0,0.2323604]
[1742652259548,0.29744557,84171.0,84170.0,0.2323604]
[1742652259950,0.17860657,84171.0,84170.0,0.2628604]
[1742652260355,0.17860657,84171.0,84170.0,0.2953604]
[1742652260557,0.00076,84171.0,84170.0,0.2953604]
[1742652260751,0.1188335,84175.0,84170.0,0.2953604]
[1742652260752,0.0316,84174.0,84173.0,0.1188362]
[1742652261052,0.0316,84174.0,84173.0,0.4803962]
[1742652261053,0.03236,84174.0,84173.0,0.4803962]
[1742652261252,0.1511947,84174.0,84173.0,0.4803962]
[1742652261751,0.03236,84174.0,84173.0,0.4803962]
[1742652261957,0.03236,84174.0,84173.0,0.4833962]
[1742652262445,0.06556,84174.0,84173.0,0.4833962]
[1742652262648,0.06556,84174.0,84173.0,0.4853962]
[1742652264343,0.03236,84174.0,84173.0,0.4853962]
[1742652265253,0.06506,84174.0,84173.0,0.4853962]
[1742652271558,0.1838947,84174.0,84173.0,0.4853962]
[1742652274861,0.1838947,84174.0,84173.0,0.5981562]
[1742652275466,0.1838947,84174.0,84173.0,0.6301562]
[1742652276573,0.1838947,84174.0,84173.0,0.6616562]
[1742652280077,0.1838947,84174.0,84173.0,0.6921562]
[1742652285472,0.06506,84174.0,84173.0,0.6601562]
[1742652285874,0.0594033,84194.0,84176.0,0.0594156]
[1742652286076,0.21429024,84188.0,84187.0,0.8404164]
[1742652286380,0.21429024,84188.0,84187.0,0.8414164]
[1742652286381,0.21329024,84188.0,84187.0,0.8414164]
[1742652286584,0.21329024,84188.0,84187.0,0.85019467]
[1742652286880,0.21429024,84188.0,84187.0,0.85019467]
[1742652287077,0.21429024,84188.0,84187.0,0.91349467]
[1742652287273,0.21629024,84188.0,84187.0,0.91349467]
[1742652287779,0.003,84188.0,84187.0,0.92522029]
[1742652287970,0.002,84188.0,84187.0,0.92522029]
[1742652288783,0.003,84188.0,84187.0,0.92522029]
[1742652298289,0.0352,84188.0,84187.0,0.92522029]
[1742652299581,0.066,84188.0,84187.0,0.92522029]
[1742652303082,0.184815,84188.0,84187.0,0.92522029]
[1742652306492,0.217715,84188.0,84187.0,0.92522029]
[1742652308892,0.21875501,84188.0,84187.0,0.92522029]
[1742652312890,0.21875501,84188.0,84187.0,1.03794029]
[1742652323204,0.217715,84188.0,84187.0,1.03794029]
[1742652323404,0.066,84188.0,84187.0,1.03794029]
[1742652323803,0.003,84188.0,84187.0,1.03794029]
[1742652324600,0.003,84188.0,84187.0,2.53794029]
[1742652324902,0.003,84188.0,84187.0,1.03794029]
[1742652326599,0.036,84188.0,84187.0,1.03794029]
[1742652330509,0.036,84188.0,84187.0,1.25161708]
[1742652332099,0.036,84188.0,84187.0,0.53001708]
[1742652332409,0.037,84188.0,84187.0,0.89081708]
[1742652332609,0.036,84188.0,84187.0,0.89081708]
[1742652334109,0.036,84188.0,84187.0,0.67714029]
[1742652338295,0.003,84188.0,84187.0,0.67714029]
[1742652344304,0.003,84188.0,84187.0,0.31634029]
[1742652344505,0.003,84188.0,84187.0,0.67714029]
[1742652346112,0.003,84188.0,84187.0,0.96221453]
[1742652351118,0.0356,84188.0,84187.0,0.96221453]
[1742652355308,0.0356,84188.0,84187.0,0.67714029]
[1742652361927,0.0669,84188.0,84187.0,0.67714029]
[1742652366227,0.0669,84188.0,84187.0,0.31634029]
[1742652366429,0.0669,84188.0,84187.0,0.67714029]
[1742652367423,0.0669,84188.0,84187.0,0.31634029]
[1742652367630,0.0669,84188.0,84187.0,0.67714029]
[1742652370632,0.185715,84188.0,84187.0,0.64404029]
[1742652370831,0.218815,84188.0,84187.0,0.64404029]
[1742652371531,0.218815,84188.0,84187.0,0.28324029]
[1742652371833,0.218815,84188.0,84187.0,0.64404029]
[1742652372235,0.219895,84188.0,84187.0,0.64404029]
[1742652373024,0.218815,84188.0,84187.0,0.64404029]
[1742652375728,0.218815,84188.0,84187.0,0.67504029]
[1742652377753,0.218815,84188.0,84187.0,0.88886903]
[1742652378550,0.218815,84188.0,84187.0,0.52806903]
[1742652378741,0.219455,84188.0,84187.0,0.88886903]
[1742652378941,0.218815,84188.0,84187.0,0.88886903]
[1742652380948,0.218815,84188.0,84187.0,0.423]
[1742652381143,0.219815,84188.0,84187.0,0.001]
[1742652383341,0.33859747,84188.0,84187.0,0.001]
[1742652383541,0.51673688,84188.0,84187.0,0.001]
[1742652385051,0.1188235,84182.0,84179.0,0.8628]
[1742652385255,0.1195035,84182.0,84181.0,0.36148]
[1742652385857,0.1857035,84182.0,84181.0,0.36148]
[1742652386954,0.1857035,84182.0,84181.0,0.00068]
[1742652387257,0.1188249,84181.0,84180.0,8e-05]
[1742652387457,0.1516649,84181.0,84180.0,8e-05]
[1742652387659,0.2178649,84181.0,84180.0,8e-05]
[1742652388452,0.2178649,84181.0,84180.0,0.00108]
[1742652391954,0.2178649,84181.0,84180.0,0.00176]
[1742652395857,0.1856649,84181.0,84180.0,0.00176]
[1742652396165,0.1856649,84181.0,84180.0,0.36256]
[1742652397561,0.1856649,84181.0,84180.0,0.00176]
[1742652408361,0.1856649,84181.0,84180.0,0.00108]
[1742652412172,0.1188277,84179.0,84178.0,0.0649]
[1742652412470,0.11942771,84179.0,84178.0,0.0649]
[1742652412670,0.18112771,84179.0,84178.0,0.0649]
[1742652414175,0.18112771,84179.0,84178.0,0.0669]
[1742652416870,0.18112771,84179.0,84178.0,0.0649]
[1742652417174,0.18112771,84179.0,84178.0,0.0659]
[1742652420975,0.18109518,84179.0,84169.0,0.19931629]
[1742652421182,0.118839,84171.0,84170.0,0.03]
[1742652421369,0.11943901,84171.0,84170.0,0.03]
[1742652421564,0.21403901,84171.0,84170.0,0.03]
[1742652421982,0.22597038,84171.0,84170.0,0.03]
[1742652422177,0.1188489,84164.0,84163.0,0.00017811]
[1742652422380,0.1188489,84164.0,84163.0,0.00089811]
[1742652422566,0.1195289,84164.0,84163.0,0.00089811]
[1742652422967,0.2137289,84164.0,84163.0,0.00089811]
[1742652423766,0.2137289,84164.0,84163.0,0.00489811]
[1742652424171,0.2137289,84164.0,84163.0,0.04089811]
[1742652427183,0.2137289,84164.0,84163.0,0.04017811]
[1742652428268,0.2137289,84164.0,84163.0,0.07195811]
[1742652429675,0.1837289,84164.0,84163.0,0.07195811]
[1742652438187,0.1195289,84164.0,84163.0,0.07195811]
[1742652438392,0.1195289,84164.0,84163.0,0.07199811]
[1742652439389,0.1195289,84164.0,84163.0,0.19084841]
[1742652443695,0.1195289,84164.0,84163.0,0.07199811]
[1742652444204,0.1836289,84164.0,84163.0,0.07199811]
[1742652462407,0.1836289,84164.0,84163.0,0.04089811]
[1742652465311,0.1836289,84164.0,84163.0,0.00989811]
[1742652466207,0.1836289,84164.0,84163.0,0.04229811]
[1742652466717,0.1836289,84164.0,84163.0,0.00989811]
[1742652469612,0.39720291,84164.0,84163.0,0.00989811]
[1742652470217,0.39720291,84164.0,84163.0,0.03989811]
[1742652472321,0.39720291,84164.0,84163.0,0.00989811]
[1742652473420,0.1836289,84164.0,84163.0,0.00989811]
[1742652474217,0.1836289,84164.0,84163.0,0.04259811]
[1742652476422,0.39720291,84164.0,84163.0,0.04259811]
[1742652479221,0.39720291,84164.0,84163.0,0.07359811]
[1742652480626,0.57635463,84164.0,84163.0,0.07359811]
[1742652484414,0.57635463,84164.0,84163.0,0.07287811]
[1742652485831,0.36278062,84164.0,84163.0,0.07287811]
[1742652491921,0.47550062,84164.0,84163.0,0.07287811]
[1742652499026,0.47550062,84164.0,84163.0,0.04187811]
[1742652501843,0.47550062,84164.0,84163.0,0.07327811]
[1742652503741,0.59023359,84164.0,84163.0,0.07327811]
[1742652504340,0.95103359,84164.0,84163.0,0.07327811]
[1742652513257,0.59023359,84164.0,84163.0,0.07327811]
[1742652513656,0.95103359,84164.0,84163.0,0.07327811]
[1742652517167,0.95103359,84164.0,84163.0,0.04187811]
[1742652518360,0.95103359,84164.0,84163.0,0.07197811]
[1742652527870,0.83831359,84164.0,84163.0,0.07197811]
[1742652530166,0.95103359,84164.0,84163.0,0.07197811]
[1742652531466,0.59023359,84164.0,84163.0,0.07197811]
[1742652532362,0.47550062,84164.0,84163.0,0.07197811]
[1742652540873,0.47550062,84164.0,84163.0,0.07273811]
[1742652547982,0.47550062,84164.0,84163.0,0.07197811]
[1742652548174,0.47550062,84164.0,84163.0,0.07265811]
[1742652548373,0.47550062,84164.0,84163.0,0.07197811]
[1742652548575,0.47550062,84164.0,84163.0,0.07273811]
[1742652550984,0.36278062,84164.0,84163.0,0.07273811]
[1742652551286,0.47550062,84164.0,84163.0,0.07273811]
[1742652559788,0.68920973,84164.0,84163.0,0.07273811]
[1742652567092,0.57648973,84164.0,84163.0,0.07273811]
[1742652567296,0.21438911,84164.0,84163.0,0.19158841]
[1742652567499,0.11272,84182.0,84173.0,0.1188362]
[1742652567684,0.24837109,84174.0,84173.0,0.4803162]
[1742652568390,0.24837109,84174.0,84173.0,0.5113162]
[1742652568593,0.24837109,84174.0,84173.0,0.5439162]
[1742652568793,0.36720579,84174.0,84173.0,0.5439162]
[1742652569299,0.36720579,84174.0,84173.0,0.55774191]
[1742652569694,0.36720579,84174.0,84173.0,0.55974191]
[1742652570500,0.1195147,84174.0,84173.0,0.55974191]
[1742652570801,0.1188347,84174.0,84173.0,0.55974191]
[1742652577200,0.1782488,84176.0,84175.0,0.1188333]
[1742652577409,0.0594162,84176.0,84175.0,0.1195533]
[1742652577611,0.1188302,84178.0,84177.0,0.1188291]
[1742652577902,0.11943021,84178.0,84177.0,0.2321891]
[1742652580008,0.11943021,84178.0,84177.0,0.2331891]
[1742652580504,0.00060001,84178.0,84177.0,0.2331891]
[1742652580706,0.00017822,84179.0,84178.0,0.1188291]
[1742652580909,0.11900592,84179.0,84178.0,0.1195091]
[1742652581207,0.11976592,84179.0,84178.0,0.1195091]
[1742652582913,0.18296592,84179.0,84178.0,0.1195091]
[1742652586018,0.15146592,84179.0,84178.0,0.1195091]
[1742652587020,0.18346592,84179.0,84178.0,0.1195091]
[1742652587312,0.00093822,84179.0,84178.0,0.1195091]
[1742652587507,0.00017822,84179.0,84178.0,0.1195091]
[1742652587704,0.03157822,84179.0,84178.0,0.1195091]
[1742652588316,0.03157822,84179.0,84178.0,0.1205091]
[1742652588516,0.03157822,84179.0,84178.0,0.1215091]
[1742652588715,0.18240592,84179.0,84178.0,0.1215091]
[1742652588914,0.18304592,84179.0,84178.0,0.1215091]
[1742652589420,0.06421822,84179.0,84178.0,0.1215091]
[1742652589609,0.06357822,84179.0,84178.0,0.1215091]
[1742652589814,0.06429822,84179.0,84178.0,0.1215091]
[1742652590006,0.06357822,84179.0,84178.0,0.1215091]
[1742652590203,0.06357822,84179.0,84178.0,0.1517091]
[1742652590611,0.06417823,84179.0,84178.0,0.1517091]
[1742652590810,0.18300593,84179.0,84178.0,0.1517091]
[1742652593326,0.18300593,84179.0,84178.0,0.14556]
[1742652593510,0.21500593,84179.0,84178.0,0.2643891]
[1742652594822,0.21500593,84179.0,84178.0,0.2633891]
[1742652595715,0.21500593,84179.0,84178.0,0.2623891]
[1742652596414,0.18300593,84179.0,84178.0,0.2623891]
[1742652597626,0.06417823,84179.0,84178.0,0.2623891]
[1742652597823,0.06357822,84179.0,84178.0,0.2623891]
[1742652598126,0.06357822,84179.0,84178.0,0.2643891]
[1742652598424,0.18240592,84179.0,84178.0,0.2643891]
[1742652598624,0.18308592,84179.0,84178.0,0.2643891]
[1742652600229,0.18308592,84179.0,84178.0,0.6251891]
[1742652600419,0.18240592,84179.0,84178.0,0.6251891]
[1742652601517,0.18240592,84179.0,84178.0,0.6583891]
[1742652602613,0.18240592,84179.0,84178.0,0.6573891]
[1742652603119,0.18240592,84179.0,84178.0,0.2965891]
[1742652603318,0.18308592,84179.0,84178.0,0.6573891]
[1742652603520,0.18240592,84179.0,84178.0,0.6573891]
[1742652603725,0.18240592,84179.0,84178.0,0.6563891]
[1742652604429,0.18240592,84179.0,84178.0,0.6573891]
[1742652604819,0.18240592,84179.0,84178.0,0.6583891]
[1742652605928,0.18240592,84179.0,84178.0,0.6573891]
[1742652607826,0.18240592,84179.0,84178.0,0.6563891]
[1742652611922,0.18308592,84179.0,84178.0,0.6563891]
[1742652615752,0.18308592,84179.0,84178.0,0.6869891]
[1742652619548,0.18240592,84179.0,84178.0,0.6869891]
[1742652621051,0.18308592,84179.0,84178.0,0.6869891]
[1742652621759,0.18308592,84179.0,84178.0,0.6879891]
[1742652621959,0.18308592,84179.0,84178.0,0.6889891]
[1742652622557,0.18308592,84179.0,84178.0,0.6879891]
[1742652623462,0.18308592,84179.0,84178.0,0.6869891]
[1742652624354,0.18240592,84179.0,84178.0,0.6869891]
[1742652626456,0.18240592,84179.0,84178.0,0.3261891]
[1742652626656,0.18308592,84179.0,84178.0,0.6869891]
[1742652628856,0.18240592,84179.0,84178.0,0.6869891]
[1742652631958,0.18240592,84179.0,84178.0,0.90036625]
[1742652632157,0.18312592,84179.0,84178.0,0.90036625]
[1742652646668,0.18312592,84179.0,84178.0,0.6869891]
[1742652653280,0.18312592,84179.0,84178.0,0.90036625]
[1742652657577,0.18312592,84179.0,84178.0,0.90136625]
[1742652657778,0.18312592,84179.0,84178.0,0.90236625]
[1742652658975,0.18312592,84179.0,84178.0,0.90136625]
[1742652659278,0.18312592,84179.0,84178.0,0.90036625]
[1742652663673,0.18312592,84179.0,84178.0,0.53956625]
[1742652663986,0.18312592,84179.0,84178.0,0.90036625]
[1742652666581,0.06429822,84179.0,84178.0,0.90036625]
[1742652666879,0.06357822,84179.0,84178.0,0.90036625]
[1742652667681,0.06357822,84179.0,84178.0,0.90136625]
[1742652667987,0.06357822,84179.0,84178.0,0.90236625]
[1742652669087,0.18240592,84179.0,84178.0,0.90236625]
[1742652669272,0.06433822,84179.0,84178.0,0.90236625]
[1742652670287,0.06433822,84179.0,84178.0,0.6889891]
[1742652670497,0.06357822,84179.0,84178.0,0.6889891]
[1742652679991,0.03157822,84179.0,84178.0,0.6889891]
[1742652684999,0.15040592,84179.0,84178.0,0.6889891]
[1742652686101,0.03157822,84179.0,84178.0,0.6889891]
[1742652690793,0.03157822,84179.0,84178.0,0.3281891]
[1742652691004,0.03157822,84179.0,84178.0,0.6889891]
[1742652692295,0.06377822,84179.0,84178.0,0.6889891]
[1742652693289,0.06377822,84179.0,84178.0,0.3281891]
[1742652693489,0.06377822,84179.0,84178.0,0.6889891]
[1742652698906,0.06377822,84179.0,84178.0,0.3281891]
[1742652699103,0.06377822,84179.0,84178.0,0.6889891]
[1742652701707,0.18260592,84179.0,84178.0,0.6889891]
[1742652704510,0.18260592,84179.0,84178.0,0.47612]
[1742652705411,0.18260592,84179.0,84178.0,0.5949491]
[1742652707213,0.18260592,84179.0,84178.0,0.6266491]
[1742652707616,0.06377822,84179.0,84178.0,0.6266491]
[1742652707815,0.06377822,84179.0,84178.0,0.6573491]
[1742652708214,0.18260592,84179.0,84178.0,0.6573491]
[1742652708709,0.18260592,84179.0,84178.0,0.87108581]
[1742652709813,0.18328592,84179.0,84178.0,0.87108581]
[1742652716417,0.18260592,84179.0,84178.0,0.87108581]
[1742652716620,0.18328592,84179.0,84178.0,0.87108581]
[1742652718824,0.18328592,84179.0,84178.0,0.90438581]
[1742652721416,0.18260592,84179.0,84178.0,0.90438581]
[1742652721811,0.18260592,84179.0,84178.0,0.6906491]
[1742652725720,0.18336592,84179.0,84178.0,0.6906491]
[1742652726325,0.06453822,84179.0,84178.0,0.6906491]
[1742652726534,0.06377822,84179.0,84178.0,0.6906491]
[1742652726921,0.18328592,84179.0,84178.0,0.6906491]
[1742652727731,0.06377822,84179.0,84178.0,0.6906491]
[1742652732923,0.18260592,84179.0,84178.0,0.6906491]
[1742652733124,0.06377822,84179.0,84178.0,0.6906491]
[1742652733731,0.18260592,84179.0,84178.0,0.6906491]
[1742652735426,0.06377822,84179.0,84178.0,0.6906491]
[1742652736029,0.18260592,84179.0,84178.0,0.6906491]
[1742652737823,0.06377822,84179.0,84178.0,0.6906491]
[1742652740138,0.18260592,84179.0,84178.0,0.6906491]
[1742652740635,0.06377822,84179.0,84178.0,0.6906491]
[1742652744733,0.06377822,84179.0,84178.0,1.0514491]
[1742652747738,0.1188185,84186.0,84183.0,0.118822]
[1742652747936,0.1188185,84186.0,84185.0,0.4796192]
[1742652748133,0.0594022,84196.0,84185.0,0.4796192]
[1742652748134,0.0594011,84198.0,84195.0,0.1188048]
[1742652748338,0.1188023,84197.0,84196.0,0.1823023]
[1742652748539,0.11976231,84197.0,84196.0,0.06438]
[1742652749447,0.15086231,84197.0,84196.0,0.06438]
[1742652750443,0.15486231,84197.0,84196.0,0.06438]
[1742652750840,0.18746231,84197.0,84196.0,0.06438]
[1742652751341,0.19046231,84197.0,84196.0,0.1831837]
[1742652751748,0.19046231,84197.0,84196.0,0.06438]
[1742652752046,0.19046231,84197.0,84196.0,0.07649267]
[1742652752933,0.22216231,84197.0,84196.0,0.07649267]
[1742652753338,0.22216231,84197.0,84196.0,0.19529637]
[1742652756139,0.22216231,84197.0,84196.0,0.17698]
[1742652756942,0.22216231,84197.0,84196.0,0.2957837]
[1742652757234,0.22216231,84197.0,84196.0,0.30769513]
[1742652772857,0.19106231,84197.0,84196.0,0.30769513]
[1742652773647,0.19106231,84197.0,84196.0,0.33789513]
[1742652775571,0.19106231,84197.0,84196.0,0.69869513]
[1742652777655,0.19106231,84197.0,84196.0,0.33789513]
[1742652777861,0.19106231,84197.0,84196.0,0.69869513]
[1742652779155,0.1901023,84197.0,84196.0,0.69869513]
[1742652779356,0.19098231,84197.0,84196.0,0.69869513]
[1742652779755,0.1901023,84197.0,84196.0,0.69869513]
[1742652780563,0.1911023,84197.0,84196.0,0.69869513]
[1742652781263,0.1901023,84197.0,84196.0,0.69869513]
[1742652783077,0.19070231,84197.0,84196.0,0.69869513]
[1742652795974,0.00760001,84197.0,84196.0,0.69869513]
[1742652796179,0.007,84197.0,84196.0,0.69869513]
[1742652796981,0.1258023,84197.0,84196.0,0.69869513]
[1742652801286,0.007,84197.0,84196.0,0.69869513]
[1742652801473,0.0376,84197.0,84196.0,0.69869513]
[1742652801673,0.0376,84197.0,84196.0,2.19869513]
[1742652802176,0.007,84197.0,84196.0,2.19869513]
[1742652803669,0.007,84197.0,84196.0,0.69869513]
[1742652804080,0.1258023,84197.0,84196.0,0.69869513]
[1742652804281,0.1258023,84197.0,84196.0,0.33789513]
[1742652804586,0.1258023,84197.0,84196.0,0.69869513]
[1742652808988,0.1577023,84197.0,84196.0,0.69869513]
[1742652810974,0.1577023,84197.0,84196.0,0.43709143]
[1742652811290,0.1886023,84197.0,84196.0,0.76313938]
[1742652811981,0.1886023,84197.0,84196.0,0.88194308]
[1742652819190,0.1886023,84197.0,84196.0,0.52114308]
[1742652819393,0.1895223,84197.0,84196.0,0.88194308]
[1742652819593,0.1886023,84197.0,84196.0,0.88194308]
[1742652820397,0.2204023,84197.0,84196.0,0.88194308]
[1742652822503,0.2204023,84197.0,84196.0,0.76313938]
[1742652822702,0.2213223,84197.0,84196.0,0.76313938]
[1742652822903,0.2213223,84197.0,84196.0,2.26313938]
[1742652823102,0.2204023,84197.0,84196.0,2.26313938]
[1742652823497,0.2204023,84197.0,84196.0,2.38194308]
[1742652824798,0.2204023,84197.0,84196.0,2.02114308]
[1742652825105,0.2204023,84197.0,84196.0,2.38194308]
[1742652826006,0.2204023,84197.0,84196.0,2.26313938]
[1742652826197,0.2204023,84197.0,84196.0,2.38194308]
[1742652829612,0.2204023,84197.0,84196.0,0.76313938]
[1742652829808,0.2204023,84197.0,84196.0,0.65057938]
[1742652830004,0.2204023,84197.0,84196.0,0.76313938]
[1742652830198,0.22128231,84197.0,84196.0,0.76313938]
[1742652830709,0.22128231,84197.0,84196.0,0.88194308]
[1742652832118,0.2204023,84197.0,84196.0,0.88194308]
[1742652832415,0.2204023,84197.0,84196.0,0.76313938]
[1742652832604,0.22128231,84197.0,84196.0,0.88194308]
[1742652832807,0.2204023,84197.0,84196.0,0.88194308]
[1742652833517,0.2204023,84197.0,84196.0,0.66845513]
[1742652833712,0.22128231,84197.0,84196.0,0.66845513]
[1742652839914,0.22128231,84197.0,84196.0,0.30765513]
[1742652840114,0.22128231,84197.0,84196.0,0.66845513]
[1742652842628,0.22128231,84197.0,84196.0,0.30765513]
[1742652842925,0.22128231,84197.0,84196.0,0.66845513]
[1742652847826,0.22128231,84197.0,84196.0,0.88204075]
[1742652848025,0.2204023,84197.0,84196.0,0.88204075]
[1742652849330,0.1895023,84197.0,84196.0,0.88204075]